bitfinex/quotes_ETHUSD_20220213
["timestamp","ask_amount","ask_price","bid_price","bid_amount"]
[1644789581950,0.3,2877.1,2876.9,0.01129476]
[1644789582152,0.86501229,2877.4,2876.8,0.78392968]
[1644789582350,0.86501229,2877.4,2876.9,0.3]
[1644789582553,0.51102653,2877.6,2876.9,0.31452945]
[1644789582760,0.51102653,2877.6,2876.9,0.01452945]
[1644789582951,0.51102653,2877.6,2876.9,0.01129453]
[1644789583151,0.51102653,2877.6,2876.9,0.01452945]
[1644789583460,3.5,2878.3,2877.6,1.09635079]
[1644789583651,1.20302263,2878.5,2877.6,1.09635079]
[1644789583850,1.02942263,2878.5,2877.6,0.3]
[1644789584052,1.89851263,2878.5,2877.4,0.03261908]
[1644789584250,1.02942263,2878.5,2877.5,1.3426]
[1644789584651,1.32942263,2878.5,2877.5,1.3426]
[1644789585501,2.19850263,2878.5,2877.7,0.86905]
[1644789585702,1.50302263,2878.5,2877.7,1.04265]
[1644789585903,1.32942263,2878.5,2877.8,0.3]
[1644789586103,0.01129169,2878.2,2877.8,0.3]
[1644789586301,1.32893971,2878.5,2877.5,0.1736]
[1644789586501,1.32893971,2878.5,2877.6,0.86897]
[1644789586700,1.32893971,2878.5,2878.0,0.869]
[1644789586902,1.32893971,2878.5,2878.0,1.169]
[1644789588704,1.32893971,2878.5,2878.0,0.3]
[1644789588900,1.32893971,2878.5,2878.1,0.86903]
[1644789589550,2.19801971,2878.5,2878.0,0.3]
[1644789589749,3.5021117,2878.4,2877.6,1.73816]
[1644789589949,3.5021117,2878.4,2877.5,0.1736]
[1644789590149,3.9981117,2878.4,2877.5,0.1736]
[1644789590548,0.87259935,2878.0,2877.5,0.1236]
[1644789590747,0.3,2877.9,2877.5,0.1236]
[1644789590949,0.3,2877.9,2877.4,0.03261908]
[1644789590950,0.3,2877.9,2877.4,0.0439137]
[1644789591949,0.3,2877.9,2877.5,0.86922]
[1644789592549,0.3,2877.9,2877.5,1.16922]
[1644789592748,0.88041023,2878.3,2877.5,1.16922]
[1644789593002,1.18041023,2878.3,2877.6,0.86914]
[1644789593200,0.86917,2878.2,2877.6,0.86914]
[1644789593399,3.5,2878.1,2877.4,1.7495245]
[1644789593601,3.5,2878.1,2877.4,0.0112945]
[1644789593602,4.1696,2878.1,2877.4,0.0112945]
[1644789593798,1.0,2878.0,2877.4,0.0112945]
[1644789594001,0.6696,2877.9,2877.4,0.0112945]
[1644789594200,0.6696,2877.9,2876.5,0.00323492]
[1644789594396,5.55513407,2877.8,2876.5,0.00323492]
[1644789594598,0.6696,2877.7,2877.4,0.01129391]
[1644789595401,1.73897,2877.6,2877.4,0.01129391]
[1644789595600,0.1736,2877.5,2876.8,0.00323492]
[1644789595798,0.97621902,2877.1,2877.0,0.04518147]
[1644789595999,1.27621902,2877.1,2877.0,0.04518147]
[1644789596652,1.27621902,2877.1,2876.7,0.00323492]
[1644789597051,1.27621902,2877.1,2876.9,0.01129445]
[1644789597852,1.27621902,2877.1,2876.7,0.00323492]
[1644789598054,4.19783411,2877.0,2876.7,0.00323492]
[1644789598254,4.19783411,2877.0,2876.9,0.01129453]
[1644789598454,0.86953,2877.0,2876.9,0.01129453]
[1644789599157,1.27621902,2877.1,2876.5,0.86951]
[1644789599353,1.27621902,2877.1,2876.8,0.01129461]
[1644789600153,1.16638666,2877.2,2876.8,0.01129461]
[1644789600417,1.16638666,2877.2,2876.7,0.00323492]
[1644789600606,1.16638666,2877.2,2876.8,0.01129461]
[1644789601505,1.16638666,2877.2,2876.7,0.00323492]
[1644789601506,3.27720976,2877.1,2876.7,0.00323492]
[1644789601710,3.77320976,2877.1,2876.9,0.01129453]
[1644789601905,3.35208757,2877.0,2876.9,0.01129453]
[1644789602106,1.16959,2877.0,2876.9,0.01129453]
[1644789602305,4.59053914,2877.0,2876.9,0.01129453]
[1644789602704,4.59053914,2877.0,2876.4,0.86956]
[1644789602905,4.69177683,2877.0,2876.8,0.01129461]
[1644789603105,0.92252519,2876.9,2876.8,0.01129461]
[1644789603906,0.9950875,2876.9,2876.1,0.00323492]
[1644789604158,0.1738,2877.4,2876.7,0.01129476]
[1644789604361,1.57987777,2877.7,2876.7,0.01129476]
[1644789604556,1.57987777,2877.7,2876.7,1.74984476]
[1644789605055,1.57987777,2877.7,2876.7,2.04178492]
[1644789605056,1.30820305,2877.7,2876.7,2.04178492]
[1644789605257,1.16515433,2877.3,2876.7,2.04178492]
[1644789605455,0.07256231,2877.2,2877.1,0.01129422]
[1644789606260,0.07256231,2877.2,2877.0,0.1736]
[1644789606656,0.4236,2878.2,2877.0,1.35224457]
[1644789606657,1.17787516,2877.8,2877.0,1.35224457]
[1644789606864,0.07256231,2877.6,2877.0,1.35224457]
[1644789607158,1.17787516,2877.8,2877.0,1.35224457]
[1644789607357,1.17787516,2877.8,2877.0,1.21293575]
[1644789607558,1.17787516,2877.8,2877.2,1.73852]
[1644789607760,1.04282,2878.2,2877.3,0.88055391]
[1644789608000,1.34282,2878.2,2877.3,1.18055391]
[1644789608199,0.4736,2878.2,2877.3,2.04965391]
[1644789608395,0.07256231,2877.8,2877.3,1.18039391]
[1644789608796,0.07256231,2877.8,2877.3,1.1691]
[1644789609001,0.07256231,2877.8,2877.5,0.86909]
[1644789609196,0.93434567,2878.0,2877.5,0.86909]
[1644789609197,0.58313782,2877.6,2877.5,0.86909]
[1644789609502,0.58313782,2877.6,2877.5,0.3]
[1644789609697,0.58313782,2877.6,2877.4,1.74947367]
[1644789609901,0.07256231,2877.5,2877.4,1.73818]
[1644789610099,0.07256231,2877.5,2877.4,1.74947367]
[1644789611108,0.1736,2878.3,2877.6,4.4]
[1644789611306,0.01128976,2878.3,2877.7,0.496]
[1644789611500,0.01128976,2878.3,2877.7,1.36495]
[1644789611749,0.01128976,2878.3,2877.7,1.53855]
[1644789611949,0.01128976,2878.3,2877.7,2.40746]
[1644789612152,0.01128976,2878.3,2877.7,2.40749]
[1644789612349,0.4236,2878.8,2877.8,1.25086419]
[1644789612350,0.92554006,2878.7,2877.8,1.25086419]
[1644789612552,0.01129106,2878.3,2877.8,1.25086419]
[1644789613149,0.01129106,2878.3,2877.8,0.3]
[1644789613348,0.01129106,2878.3,2877.7,1.16895]
[1644789613549,1.22554006,2878.7,2877.7,21.38895]
[1644789613751,0.01129118,2878.3,2877.7,21.38895]
[1644789613948,0.01129118,2878.3,2878.0,0.86896]
[1644789614149,1.17401997,2878.2,2878.0,1.16896]
[1644789614349,1.47401997,2878.2,2878.0,1.16896]
[1644789614955,1.47401997,2878.2,2877.6,0.86916]
[1644789615150,0.1736,2878.1,2877.5,1.3523]
[1644789615403,0.1736,2878.1,2877.5,0.1736]
[1644789616196,0.99510314,2877.5,2877.4,0.01129427]
[1644789616597,1.29510314,2877.5,2877.4,0.01129427]
[1644789616798,0.3,2877.5,2877.4,0.01129427]
[1644789616996,0.3,2877.5,2877.4,0.01001476]
[1644789617196,1.73852,2878.3,2877.3,0.4736]
[1644789617400,0.1736,2878.5,2877.4,0.86923]
[1644789617597,0.3,2878.3,2877.4,0.86923]
[1644789617796,0.90731928,2877.8,2877.4,1.16923]
[1644789618196,1.20731928,2877.8,2877.4,1.16923]
[1644789618796,1.20731928,2877.8,2877.4,1.06923]
[1644789618999,1.20731928,2877.8,2877.1,0.1736]
[1644789619000,0.86933,2877.7,2877.1,0.1736]
[1644789619253,1.04293,2877.7,2877.1,0.1736]
[1644789619654,3.4737507,2877.7,2877.1,0.1736]
[1644789619854,0.86935,2877.6,2877.1,0.1736]
[1644789620062,3.65789563,2877.5,2877.1,0.1736]
[1644789620454,3.44772857,2877.5,2877.1,0.1736]
[1644789620655,0.1736,2877.5,2877.1,0.1736]
[1644789620953,1.06697053,2877.2,2877.1,0.1736]
[1644789622157,0.3,2877.3,2877.1,0.1736]
[1644789622359,0.3,2877.6,2877.1,0.1736]
[1644789622564,0.3,2877.6,2877.2,0.86931]
[1644789622907,0.1736,2877.8,2877.2,1.16931]
[1644789622908,0.86935,2877.7,2877.2,1.16931]
[1644789623298,1.15849444,2877.5,2877.2,1.16931]
[1644789623500,1.45849444,2877.5,2877.3,0.01129383]
[1644789623902,2.32789444,2877.5,2877.3,0.01129383]
[1644789624401,2.32789444,2877.5,2876.9,0.3]
[1644789624601,2.32789444,2877.5,2877.3,0.01129391]
[1644789625003,1.45849444,2877.5,2877.3,0.01129391]
[1644789625603,1.45849444,2877.5,2877.1,0.3]
[1644789625806,1.04295,2877.6,2876.9,0.3]
[1644789626007,0.1736,2878.1,2877.3,0.88055391]
[1644789626205,0.18488999,2878.3,2877.3,0.88055391]
[1644789626405,0.01128999,2878.3,2877.3,0.91847296]
[1644789626647,0.01128999,2878.3,2877.3,1.21847296]
[1644789626848,0.94276436,2877.9,2877.3,1.16926]
[1644789627047,0.94276436,2877.9,2877.4,0.01129415]
[1644789627249,1.24276436,2877.9,2877.5,0.86919]
[1644789627650,1.24276436,2877.9,2877.5,1.16919]
[1644789628451,1.24276436,2877.9,2877.6,0.03572745]
[1644789628852,1.24276436,2877.9,2877.8,0.03142347]
[1644789631597,1.24276436,2877.9,2877.7,0.3]
[1644789635648,1.24276436,2877.9,2877.7,0.25]
[1644789637451,4.53277594,2877.9,2877.7,0.25]
[1644789637652,1.24276436,2877.9,2877.3,0.1736]
[1644789637917,0.86939,2877.8,2877.4,0.01129415]
[1644789638307,0.3,2877.7,2877.4,0.01129415]
[1644789638707,0.94276436,2877.9,2877.4,0.01129415]
[1644789638708,0.86935,2877.8,2877.4,0.01129415]
[1644789638909,0.86935,2877.8,2877.3,0.1736]
[1644789639110,0.86935,2877.8,2877.4,0.01129367]
[1644789639510,0.86935,2877.8,2877.3,0.08489367]
[1644789639710,1.12718924,2877.4,2877.3,0.08489367]
[1644789639911,1.12718924,2877.4,2877.2,0.86932]
[1644789640110,1.12718924,2877.4,2877.1,1.4637]
[1644789640111,1.42718924,2877.4,2877.1,0.3]
[1644789640311,1.42718924,2877.4,2876.9,0.3336979]
[1644789640511,1.42718924,2877.4,2877.0,0.1736]
[1644789641950,1.42718924,2877.4,2876.9,2.3766679]
[1644789642150,1.42718924,2877.4,2877.0,1.47849618]
[1644789642752,1.42718924,2877.4,2877.1,0.1736]
[1644789642956,1.42718924,2877.4,2877.2,0.86932]
[1644789643357,1.42718924,2877.4,2877.2,1.16932]
[1644789643955,1.42718924,2877.4,2877.2,1.18061406]
[1644789644855,1.42718924,2877.4,2877.2,1.16932]
[1644789645054,1.42718924,2877.4,2877.2,1.18061406]
[1644789646201,1.42718924,2877.4,2877.2,0.31129406]
[1644789646702,1.42718924,2877.4,2877.2,0.01129406]
[1644789647302,1.42718924,2877.4,2876.7,1.77187727]
[1644789647502,1.42718924,2877.4,2877.2,0.01129406]
[1644789648509,1.42718924,2877.4,2877.1,0.3]
[1644789648705,1.42718924,2877.4,2877.2,0.01129406]
[1644789649003,1.42718924,2877.4,2877.2,0.04276231]
[1644789649647,1.42718924,2877.4,2877.2,0.03146825]
[1644789649848,1.42718924,2877.4,2877.2,0.04276231]
[1644789650449,0.3,2877.4,2877.2,0.04276231]
[1644789650847,0.1736,2877.7,2877.2,0.90076825]
[1644789651052,0.1736,2877.7,2877.2,1.21206231]
[1644789651248,0.1736,2877.7,2877.3,0.03641626]
[1644789651448,2.03863,2877.8,2877.3,0.03641626]
[1644789651650,1.17806278,2877.6,2877.3,0.03641626]
[1644789651850,1.73863,2877.8,2877.3,0.03641626]
[1644789652053,0.1736,2878.1,2877.4,26.69838846]
[1644789652253,0.0112915,2877.9,2877.5,4.97838846]
[1644789652451,0.0112915,2877.9,2877.6,3.5]
[1644789652649,0.0112915,2877.9,2877.6,1.5128903]
[1644789652908,0.0112915,2877.9,2877.7,0.03833179]
[1644789653097,0.0112915,2877.9,2877.7,1.73808]
[1644789653299,1.14091268,2878.3,2877.7,1.73808]
[1644789653499,0.01129216,2877.9,2877.8,0.3]
[1644789654100,0.01129216,2877.9,2877.5,0.4736]
[1644789654101,0.18489216,2877.9,2877.5,0.4736]
[1644789654302,1.31949521,2877.9,2877.5,0.4736]
[1644789654500,1.2404703,2877.8,2877.5,0.4736]
[1644789654800,2.1099003,2877.8,2877.5,0.4736]
[1644789658651,1.9363003,2877.8,2877.5,0.4736]
[1644789658855,3.6750603,2877.8,2877.5,0.4736]
[1644789659052,0.3,2877.7,2877.5,0.4736]
[1644789660253,3.6750603,2877.8,2877.5,0.4736]
[1644789662205,0.3,2877.7,2877.5,0.4736]
[1644789663203,1.0668703,2877.8,2877.5,0.4736]
[1644789663404,1.3668703,2877.8,2877.5,0.4736]
[1644789664352,1.2668703,2877.8,2877.5,0.4736]
[1644789664554,1.2668703,2877.8,2877.5,0.3]
[1644789664754,2.1361803,2877.8,2877.3,1.1805745]
[1644789664955,2.1361803,2877.8,2877.3,1.21669508]
[1644789665158,0.2,2877.8,2877.4,4.13902179]
[1644789665360,1.30820305,2878.3,2877.4,0.90523195]
[1644789665557,0.01129174,2877.9,2877.4,0.90523195]
[1644789666157,0.31129174,2877.9,2877.4,0.90523195]
[1644789666563,1.40589733,2877.9,2877.4,0.90523195]
[1644789666758,1.41718931,2877.9,2877.4,0.90523195]
[1644789667058,0.31129198,2877.9,2877.4,0.90523195]
[1644789667258,0.31129198,2877.9,2877.4,0.86922]
[1644789667659,0.3,2877.9,2877.4,0.86922]
[1644789667907,0.31129198,2877.9,2877.4,0.86922]
[1644789668107,1.18051198,2877.9,2877.4,0.86922]
[1644789668310,0.85346845,2877.8,2877.4,0.86922]
[1644789671512,1.72273845,2877.8,2877.4,0.86922]
[1644789671758,0.3,2877.7,2877.4,0.86922]
[1644789672455,0.3,2877.7,2877.5,3.23819554]
[1644789672664,1.30820305,2878.3,2877.6,20.22]
[1644789672861,0.31678332,2878.7,2877.6,20.22]
[1644789672862,1.31204916,2878.7,2877.8,25.22]
[1644789673156,0.00384611,2878.7,2877.9,1.50851811]
[1644789673357,0.00384611,2878.8,2877.9,1.20386356]
[1644789673556,1.13656587,2878.8,2878.0,1.13882092]
[1644789673757,1.13656587,2878.8,2878.1,0.86884]
[1644789673957,1.13656587,2878.8,2878.1,0.90857573]
[1644789674160,1.13656587,2878.8,2878.2,1.73768]
[1644789674361,0.63656587,2878.8,2878.2,2.03768]
[1644789674558,0.00385336,2878.7,2878.2,2.03768]
[1644789674957,0.00385336,2878.7,2878.3,3.29931192]
[1644789675158,0.64041923,2878.8,2878.3,3.29931192]
[1644789675410,0.64041923,2878.8,2878.2,2.03768]
[1644789675411,0.94041923,2878.8,2878.2,2.03768]
[1644789675603,0.94041923,2878.8,2878.3,3.22384652]
[1644789675902,0.94041923,2878.8,2878.3,4.09268652]
[1644789676102,0.94041923,2878.8,2878.4,0.3]
[1644789677405,0.1736,2878.7,2878.4,0.3]
[1644789677606,0.18488447,2878.7,2878.4,0.3]
[1644789677807,0.88026447,2878.7,2878.4,0.3]
[1644789678208,0.4736,2878.6,2878.0,1.1315]
[1644789678508,1.78565641,2878.6,2878.0,0.3]
[1644789678715,1.78565641,2878.6,2877.5,0.01128921]
[1644789678716,1.60820305,2878.5,2877.5,0.01128921]
[1644789678906,0.86928,2878.2,2877.5,0.01128921]
[1644789679152,0.86929,2878.0,2877.5,0.01128921]
[1644789679350,0.4736,2877.9,2877.5,0.01128921]
[1644789679750,0.4736,2877.9,2876.9,1.13605341]
[1644789679950,0.93410517,2877.5,2877.2,1.73846]
[1644789680349,1.23410517,2877.5,2877.2,2.03846]
[1644789681852,2.10342517,2877.5,2877.2,2.03846]
[1644789682451,2.11471159,2877.5,2877.2,2.03846]
[1644789682652,1.18060642,2877.5,2877.2,2.03846]
[1644789682903,1.18060642,2877.5,2877.2,1.73846]
[1644789683302,1.12221218,2877.5,2877.2,1.73846]
[1644789683499,1.1334986,2877.5,2877.2,1.73846]
[1644789683699,0.2641786,2877.5,2877.2,1.73846]
[1644789684100,0.01128642,2877.5,2877.2,1.73846]
[1644789684299,0.01128642,2877.5,2877.2,2.03846]
[1644789684499,1.94350751,2877.6,2877.2,2.03846]
[1644789684703,0.01128642,2877.5,2877.2,2.03846]
[1644789685699,2.24350751,2877.6,2877.2,2.03846]
[1644789685900,0.01128642,2877.5,2877.2,2.03846]
[1644789686966,2.24350751,2877.6,2877.2,2.03846]
[1644789687268,0.01128642,2877.5,2877.2,2.03846]
[1644789687965,2.2312408,2877.6,2877.2,2.03846]
[1644789688167,0.86933,2877.5,2877.2,2.03846]
[1644789690168,0.86933,2877.5,2877.2,1.73846]
[1644789691403,0.86933,2877.5,2877.2,2.03846]
[1644789694557,0.86933,2877.5,2877.2,0.3]
[1644789694757,0.86933,2877.5,2877.1,0.31128794]
[1644789694960,0.86933,2877.5,2877.1,0.01128794]
[1644789695356,0.86933,2877.5,2877.0,0.86934]
[1644789695555,4.18928412,2877.5,2877.1,0.01128782]
[1644789695756,4.36288412,2877.5,2877.1,0.01128782]
[1644789695956,1.04293,2877.5,2877.1,0.01128782]
[1644789696157,0.86933,2877.5,2877.1,0.01128782]
[1644789696359,0.86933,2877.5,2877.1,0.31128782]
[1644789696557,0.86933,2877.5,2877.1,0.3]
[1644789696757,0.86933,2877.5,2877.1,0.31128782]
[1644789697657,0.86933,2877.5,2877.1,0.3]
[1644789697905,0.86933,2877.5,2877.1,0.31128782]
[1644789698603,1.04293,2877.5,2877.1,0.31128782]
[1644789698903,1.04293,2877.5,2877.1,0.3]
[1644789699103,1.04293,2877.5,2877.1,0.31128782]
[1644789700111,1.04293,2877.5,2877.1,0.3]
[1644789701954,0.86933,2877.5,2877.1,0.3]
[1644789702154,2.2380306,2877.6,2877.1,0.3]
[1644789702353,1.3688006,2877.6,2877.1,0.3]
[1644789702555,1.3619608,2877.6,2877.1,0.3]
[1644789702757,1.37322184,2877.6,2877.1,0.31126314]
[1644789703754,1.3619608,2877.6,2877.1,0.3]
[1644789704055,0.86929,2877.5,2877.1,0.31126314]
[1644789704454,0.8298861,2877.5,2877.1,0.31126314]
[1644789704855,0.8298861,2877.5,2877.1,0.3]
[1644789705061,0.28773329,2877.6,2877.1,0.31126302]
[1644789705062,0.01126092,2877.6,2877.1,0.31126302]
[1644789705263,0.01126092,2877.6,2877.2,0.86922]
[1644789706110,1.73833,2878.2,2877.2,0.86922]
[1644789706410,0.01126116,2877.6,2877.2,0.86922]
[1644789706909,0.01126116,2877.6,2877.3,2.52100724]
[1644789707109,0.01126116,2877.6,2877.3,2.21176]
[1644789707310,0.86079043,2878.1,2877.4,1.73808]
[1644789707513,0.01126127,2877.6,2877.4,1.73808]
[1644789707913,0.01126127,2877.6,2877.4,2.73808]
[1644789708515,0.86079043,2878.1,2877.4,3.60716]
[1644789708715,0.01126139,2877.6,2877.4,3.60716]
[1644789708911,0.01126139,2877.6,2877.4,2.73808]
[1644789709369,0.01126139,2877.6,2877.4,2.73688159]
[1644789709769,1.16079043,2878.1,2877.4,2.73688159]
[1644789709971,0.01126139,2877.6,2877.4,2.73688159]
[1644789710972,1.16079043,2878.1,2877.4,2.73688159]
[1644789711171,0.01126139,2877.6,2877.4,2.73688159]
[1644789712172,1.16079043,2878.1,2877.4,2.73688159]
[1644789712371,0.01126139,2877.6,2877.4,1.73688159]
[1644789713217,0.86912,2878.0,2877.4,1.73688159]
[1644789713509,0.3,2878.1,2877.4,2.60593159]
[1644789713810,0.01126139,2877.6,2877.4,2.73688159]
[1644789714009,0.01126139,2877.6,2877.4,2.76774064]
[1644789714608,1.82594718,2878.3,2877.6,0.86904]
[1644789714808,2.12594718,2878.3,2877.6,0.86904]
[1644789715110,2.12594718,2878.3,2877.7,0.3]
[1644789716010,0.01089321,2878.1,2877.7,0.3]
[1644789716410,0.01089321,2878.1,2877.7,1.16906]
[1644789716661,0.01089321,2878.1,2877.7,0.3]
[1644789716860,4.40620126,2878.2,2877.3,3.4108]
[1644789717359,0.01089337,2878.0,2877.3,3.4108]
[1644789717560,0.86923,2877.6,2877.3,3.4108]
[1644789717760,0.86923,2877.6,2877.2,3.08073]
[1644789717961,0.86923,2877.6,2877.4,0.86923]
[1644789718364,0.86923,2877.6,2877.4,1.16923]
[1644789718365,0.88012376,2877.6,2877.4,1.16923]
[1644789718561,0.01089376,2877.6,2877.4,1.16923]
[1644789719365,1.32445101,2877.7,2877.4,1.16923]
[1644789719664,0.01126139,2877.6,2877.4,1.16923]
[1644789720610,1.32445101,2877.7,2877.4,1.16923]
[1644789720809,0.01126139,2877.6,2877.4,1.16923]
[1644789721612,1.32445101,2877.7,2877.4,1.16923]
[1644789721914,0.01126139,2877.6,2877.4,1.16923]
[1644789722913,1.32445101,2877.7,2877.4,1.16923]
[1644789723112,0.01126139,2877.6,2877.4,1.16923]
[1644789723914,0.01126139,2877.6,2877.5,3.24382129]
[1644789724159,1.74216336,2878.2,2877.5,4.72215269]
[1644789724160,0.00385336,2878.2,2877.5,4.72215269]
[1644789724359,0.30385336,2878.3,2877.6,0.86906]
[1644789724559,0.00385336,2878.3,2877.6,0.86906]
[1644789724759,0.00385336,2878.3,2877.7,0.3]
[1644789725158,0.87289336,2878.3,2877.7,2.03807]
[1644789725358,0.87289336,2878.3,2877.7,1.73807]
[1644789725558,0.01126062,2878.1,2877.8,0.3]
[1644789725960,0.01126062,2878.1,2877.3,3.38958616]
[1644789726164,0.86914,2878.0,2877.4,1.73828]
[1644789726359,0.86914,2878.0,2877.4,2.03828]
[1644789726560,0.3,2877.9,2877.4,2.03828]
[1644789726761,0.01126109,2877.8,2877.5,0.86915]
[1644789727663,0.3,2877.8,2877.5,4.11801363]
[1644789727920,0.31126116,2877.8,2877.5,4.12130447]
[1644789728110,0.31126116,2877.8,2877.5,0.86915]
[1644789728111,0.01126116,2877.8,2877.5,0.86915]
[1644789728910,0.00385336,2878.1,2877.5,0.86915]
[1644789729112,0.01126116,2877.8,2877.5,0.86915]
[1644789730110,0.86921,2877.8,2877.5,0.86915]
[1644789730313,0.88047116,2877.8,2877.5,0.86915]
[1644789730515,0.25,2877.7,2877.5,0.86915]
[1644789730711,0.25,2877.7,2877.5,1.16915]
[1644789730911,0.01126116,2877.8,2877.5,1.16915]
[1644789731316,0.17745336,2878.1,2877.5,1.16915]
[1644789731514,0.01126116,2877.8,2877.5,1.16915]
[1644789732560,0.00385336,2878.1,2877.5,1.16915]
[1644789732761,0.01126116,2877.8,2877.6,1.73819]
[1644789732958,0.01126116,2877.8,2877.7,0.3]
[1644789733361,0.01126116,2877.8,2877.7,3.56056393]
[1644789733559,0.01126116,2877.8,2877.7,3.59633181]
[1644789733761,0.00385336,2878.4,2877.7,4.46525181]
[1644789733965,0.00385336,2878.4,2877.9,0.86891]
[1644789734160,0.00385336,2878.4,2877.9,0.3]
[1644789734563,0.00385336,2878.4,2877.9,3.56498734]
[1644789734763,0.00385336,2878.4,2878.0,1.86892]
[1644789734963,0.00385336,2878.6,2878.0,0.86892]
[1644789735169,0.01126039,2878.3,2877.6,1.91181]
[1644789735416,0.86913,2878.2,2877.6,0.1736]
[1644789735712,1.30820305,2878.0,2877.1,0.01126504]
[1644789735912,0.86957,2877.6,2877.1,0.01126504]
[1644789736113,0.1736,2877.5,2876.8,0.00323492]
[1644789736312,0.3,2877.6,2876.5,1.48189448]
[1644789736618,1.04304,2877.4,2877.1,0.01126361]
[1644789736812,0.3,2877.3,2877.1,0.01126361]
[1644789737010,0.1736,2877.2,2877.1,0.01126361]
[1644789737209,0.1736,2877.2,2876.4,0.00323492]
[1644789737409,1.18536053,2877.1,2876.4,1.4819082]
[1644789737610,2.05484053,2877.1,2876.6,0.04505868]
[1644789737812,0.3,2877.0,2876.7,1.47867328]
[1644789738011,0.3,2877.0,2876.7,1.4819082]
[1644789738213,0.3,2877.1,2876.7,1.7819082]
[1644789738416,1.73901,2877.5,2876.8,1.47867328]
[1644789738417,0.1736,2877.5,2876.8,1.47867328]
[1644789738612,0.1736,2877.7,2876.8,4.2629882]
[1644789738910,3.5,2877.9,2876.8,4.2629882]
[1644789738911,0.01125997,2877.6,2877.0,0.86926]
[1644789739169,0.01125997,2877.6,2877.1,0.3]
[1644789739170,0.18485997,2877.6,2877.1,0.3]
[1644789739365,0.01125997,2877.6,2877.1,0.3]
[1644789739565,0.18485997,2877.6,2877.1,0.3]
[1644789739765,1.04285,2877.6,2877.1,0.3]
[1644789739967,1.05411104,2877.6,2877.1,0.31126314]
[1644789740966,1.04285,2877.6,2877.1,0.3]
[1644789741166,1.05411104,2877.6,2877.1,0.31126314]
[1644789742068,0.3,2877.7,2877.2,3.2168693]
[1644789742267,1.62499362,2878.1,2877.3,1.4784793]
[1644789742268,0.1736,2877.9,2877.3,1.4784793]
[1644789742467,0.01126104,2877.6,2877.3,1.4784793]
[1644789742666,0.01126104,2877.6,2877.3,1.7784793]
[1644789742924,0.1736,2878.0,2877.4,0.91809751]
[1644789742925,0.13486104,2878.0,2877.4,0.91809751]
[1644789743114,0.00385336,2878.1,2877.4,0.91809751]
[1644789743313,0.86919,2878.0,2877.4,0.3]
[1644789743513,0.1736,2877.9,2877.2,2.03839]
[1644789743813,0.1736,2878.0,2877.2,2.03839]
[1644789744013,1.91207,2878.0,2877.5,0.86919]
[1644789744213,1.91207,2878.0,2877.5,1.16919]
[1644789744613,0.3,2877.9,2877.5,1.16919]
[1644789744813,0.30684027,2877.9,2877.5,1.16919]
[1644789745014,1.17602027,2877.9,2877.5,1.16919]
[1644789745813,1.16918,2877.9,2877.5,1.16919]
[1644789746015,0.00684027,2877.8,2877.5,1.16919]
[1644789746966,1.16918,2877.9,2877.5,1.16919]
[1644789747164,0.01126116,2877.8,2877.5,1.16919]
[1644789747465,0.18486116,2877.8,2877.5,0.3]
[1644789747671,0.18486116,2877.8,2877.4,0.31126268]
[1644789747866,1.05408116,2877.8,2877.4,0.01126268]
[1644789748063,1.04282,2877.8,2877.2,2.03839]
[1644789748265,0.3,2877.7,2877.2,2.03839]
[1644789748566,0.31126124,2877.7,2877.4,0.88048256]
[1644789748766,0.31126124,2877.7,2877.4,1.18048256]
[1644789748767,0.01126124,2877.7,2877.4,1.18048256]
[1644789749164,0.31126124,2877.7,2877.4,1.18048256]
[1644789749363,0.3,2877.7,2877.4,1.16922]
[1644789749569,0.86926,2877.6,2877.4,1.18048244]
[1644789749765,0.86926,2877.6,2877.4,0.31126244]
[1644789750165,0.86926,2877.6,2877.4,0.01126244]
[1644789750611,0.86926,2877.6,2877.3,1.16927]
[1644789750812,0.86926,2877.6,2877.4,0.01126252]
[1644789751812,0.86926,2877.6,2877.3,1.16927]
[1644789752011,0.86926,2877.6,2877.4,0.01126252]
[1644789753013,0.86926,2877.6,2877.3,1.16927]
[1644789753213,0.86926,2877.6,2877.4,0.01126252]
[1644789754260,0.86926,2877.6,2877.3,1.16927]
[1644789754463,0.86926,2877.6,2877.4,0.01126252]
[1644789755261,0.86926,2877.6,2877.3,1.16927]
[1644789755466,0.3,2877.7,2877.3,1.16927]
[1644789755761,0.3,2877.7,2877.2,1.73839]
[1644789755762,0.011261,2877.7,2877.4,0.88044252]
[1644789756165,0.011261,2877.7,2877.4,1.18044252]
[1644789756562,0.99741282,2877.9,2877.4,1.16918]
[1644789756762,0.01126112,2877.7,2877.4,1.18044244]
[1644789757162,0.31126112,2877.7,2877.4,1.18044244]
[1644789757764,0.3,2877.7,2877.4,1.16918]
[1644789758016,0.31126112,2877.7,2877.4,1.18044244]
[1644789758815,0.31126112,2877.7,2877.4,1.13044244]
[1644789759015,0.3,2877.7,2877.4,1.11918]
[1644789759317,0.01126112,2877.7,2877.4,1.13044244]
[1644789760116,0.3,2877.8,2877.4,1.11918]
[1644789760316,0.01126112,2877.7,2877.5,1.73824]
[1644789761316,0.3,2877.9,2877.5,1.73824]
[1644789761518,0.01126124,2877.7,2877.6,1.03418878]
[1644789761762,0.01126124,2877.7,2877.6,1.33418878]
[1644789762061,4.35448765,2878.2,2877.6,1.33418878]
[1644789762361,0.86916,2877.9,2877.6,1.33418878]
[1644789763163,0.86916,2877.9,2877.6,0.3]
[1644789763362,0.3,2877.8,2877.5,2.03824]
[1644789764261,0.30683171,2877.8,2877.5,2.03824]
[1644789764861,0.30683171,2877.8,2877.7,1.09917805]
[1644789765067,0.3,2877.8,2877.7,1.09917805]
[1644789765261,0.30683171,2877.8,2877.7,1.39917805]
[1644789766111,0.3,2877.8,2877.7,1.39917805]
[1644789767109,0.3,2877.8,2877.5,2.04950253]
[1644789767310,0.3,2877.8,2877.5,2.03824]
[1644789767509,0.3,2877.8,2877.5,2.04950253]
[1644789767716,0.3,2877.8,2877.7,0.3]
[1644789768113,0.31126101,2877.9,2877.7,0.3]
[1644789768312,0.31126101,2877.9,2877.7,1.15959791]
[1644789768510,0.3,2877.9,2877.7,1.15959791]
[1644789768911,0.31126093,2877.9,2877.7,1.15959791]